Cogmind - Beta 13 X1 @@@ ROGUE MODE // 2023.08.24 @ 22:30:31 Player: deadnoob Result: Destroyed by D-53 Grenadier with Mini Grenade Launcher Performance ------------- Evolutions (0) 0 Regions Visited (4) 800 Robots Destroyed (33) 165 Value Destroyed (664) 664 Prototype IDs (25) 500 Alien Tech Used (0) 0 Bonus (248) 248 TOTAL SCORE: 2377 Bonus ------- Aligned with FarCom 300 Friendly Fire -52 Cogmind --------- Core Integrity 0/250 Matter 237/300 Energy 329/350 System Corruption 3% Temperature Cool (0) Movement Core (800) Ox15 Location -9/Mines Parts ------- > --- POWER (1) -------- (None) > --- PROPULSION (2) --- (None) > --- UTILITY (2) ------ High-capacity Storage Unit High-capacity Battery > --- WEAPON (2) ------- Assault Rifle Assault Rifle > --- INVENTORY (20) --- Huge Storage Unit Lightpack 2.0 Large Matter Pod (150) Experimental Sensor Array Makeshift Terrain Scan Processor 0b10 Alert Chip Thief Drone Bay (3/3) Firepult Light Cannon Light Cannon Rocket Launcher Peak State ------------ > --- POWER ------------ Improved Ion Engine > --- PROPULSION ------- Light Treads Light Treads > --- UTILITY ---------- High-capacity Storage Unit Experimental Sensor Array > --- WEAPON ----------- Light Cannon Battle Cannon > --- INVENTORY -------- Improved Ion Engine Light Treads Improved Heat Sink Huge Storage Unit High-capacity Battery Medium Matter Pod Heavy EM Pulse Gun Heavy EM Pulse Gun Heavy EM Pulse Gun Assault Rifle Assault Rifle Assault Rifle Light Assault Rifle Light Assault Rifle Light Cannon Light Cannon Light Cannon EMP Blaster EMP Blaster Rocket Launcher [Rating: 19] Favorites ----------- Power Improved Ion Engine Engine Improved Ion Engine Propulsion Light Treads Treads Light Treads Leg Aluminum Leg Utility High-capacity Storage Unit Device Seismic Detector Storage High-capacity Storage Unit Weapon Light Cannon Energy Gun Heavy EM Pulse Gun Ballistic Gun Assault Rifle Ballistic Cannon Light Cannon Launcher EMP Blaster Build | -11 -10 -10 -10 -9 ------- Run | Jun Mat Min Exi Min Slots Evolved . | . . . . . Power . | . . . . . Propulsion . | . . . . . Utility . | . . . . . Weapon . | . . . . . Parts Attached 37 | 4 18 4 3 8 Power 3 | . 3 . . . Engine 3 | . 3 . . . Core . | . . . . . Reactor . | . . . . . Propulsion 8 | 2 5 . . 1 Treads 8 | 2 5 . . 1 Leg . | . . . . . Wheel . | . . . . . Hover . | . . . . . Flight . | . . . . . Utility 8 | 1 3 3 1 . Device 4 | 1 . 3 . . Storage 4 | . 3 . 1 . Processor . | . . . . . Hackware . | . . . . . Protection . | . . . . . Artifact . | . . . . . Weapon 18 | 1 7 1 2 7 Energy Gun 3 | . . . . 3 Energy Cannon . | . . . . . Ballistic Gun 10 | 1 5 . 2 2 Ballistic Cannon 3 | . 2 1 . . Launcher 2 | . . . . 2 Special Weapon . | . . . . . Impact Weapon . | . . . . . Slashing Weapon . | . . . . . Piercing Weapon . | . . . . . Special Melee Weapon . | . . . . . Unidentified Prototypes 2 | . . 2 . . Parts Lost 9 | . 1 . . 8 Power 1 | . . . . 1 Propulsion 4 | . 1 . . 3 Utility . | . . . . . Weapon 4 | . . . . 4 Highest Loss Streak 8 | . 1 . . 8 To Critical Strikes . | . . . . . Average Slot Usage (%) 98 | . 99 100 97 97 Engine 13 | . 13 14 14 13 Treads 27 | . 28 28 28 26 Device 11 | . 14 14 9 . Storage 15 | . 13 14 18 28 Energy Gun 1 | . . . . 26 Ballistic Gun 11 | . 16 . 13 . Ballistic Cannon 14 | . 11 28 12 . Naked Turns . | . . . . . Heaviest Build 57 | 12 54 57 57 57 Greatest Support 40 | 40 40 40 40 40 Greatest Overweight (x) 1 | . 1 1 1 1 Average Overweight (x) . | . . 1 1 1 Largest Inventory Capacity 20 | 8 20 20 20 20 Average Capacity 17 | 8 13 20 20 20 Most Carried 20 | 6 20 20 20 20 Average Carried 15 | 6 11 19 17 18 Final Capacity 20 | 8 20 20 20 20 Final Carried 20 | 6 20 20 20 14 Class Distribution -------------------- 96% | Mutant 3% | Scavenger-Mutant Dominant Class ---------------- Mutant | -10/Materials Mutant | -10/Mines Mutant | -10/Exiles Mutant | -9/Mines Resources | -11 -10 -10 -10 -9 ----------- Run | Jun Mat Min Exi Min Matter Collected 1116 | 264 588 70 144 50 Remotely . | . . . . . Salvage Created 1139 | 113 864 19 . 143 Parts 82 | 7 65 5 . 5 Haulers Intercepted 2 | . 2 . . . Recyclers Shooed 3 | 1 1 . . 1 Parts Field Recycled . | . . . . . Retrieved Matter . | . . . . . Parts Self-Destructed . | . . . . . Prevented . | . . . . . Kills | -11 -10 -10 -10 -9 ------- Run | Jun Mat Min Exi Min Combat Hostiles Destroyed 23 | . 19 3 . 1 Guns 16 | . 16 . . . Cannons 6 | . 3 3 . . AOE 1 | . . . . 1 Classes Destroyed 9 | 2 5 . . 2 Builder 1 | . 1 . . . Tunneler 1 | 1 . . . . Hauler 2 | . 2 . . . Recycler 3 | 1 1 . . 1 Watcher 2 | . 2 . . . Swarmer 9 | . 6 3 . . Grunt 13 | . 13 . . . Demolisher 1 | . . . . 1 Zionite 1 | . . . . 1 Best Kill Streak 3 | 1 3 3 . 2 Combat Bots Only 3 | . 3 3 . 1 Max Kills in Single Turn 2 | 1 2 1 . 1 Gunslinging . | . . . . . Exploded 1 | . . . . 1 Melee . | . . . . . Uniques/NPCs Destroyed . | . . . . . Combat | -11 -10 -10 -10 -9 -------- Run | Jun Mat Min Exi Min Damage Taken 1507 | . 513 62 . 932 Core 251 | . 76 6 . 169 Absorbed by Shields . | . . . . . Regen/Repaired (Parts) 101 | . 101 . . . Core Remaining (%) 100 | 100 . . . . Volleys Fired 87 | 6 64 7 1 9 Largest 2 | 2 2 2 2 2 Hottest 90 | 40 70 70 74 90 Shots Fired 171 | 12 128 14 2 15 Gun 142 | 12 120 . . 10 Cannon 24 | . 8 14 2 . Launcher 5 | . . . . 5 Special . | . . . . . Kinetic 162 | 12 128 14 2 6 Thermal . | . . . . . Explosive . | . . . . . Electromagnetic 9 | . . . . 9 Robot Hit Streak 15 | 4 15 8 . 4 Robot Miss Streak 4 | 1 4 3 . 1 Penetration Max . | . . . . . Secondary Targets . | . . . . . Shots Hit Robots 104 | 8 80 6 . 10 Core Hits 51 | 4 37 3 . 7 Critical Kills 1 | . 1 . . . Critical Parts Destroyed 1 | . 1 . . . Critical Strikes 3 | . 3 . . . Destroy 2 | . 2 . . . Blast 1 | . 1 . . . Melee Attacks . | . . . . . Impact . | . . . . . Slashing . | . . . . . Piercing . | . . . . . Sneak Attacks . | . . . . . Combat Hostiles . | . . . . . Follow-up Attacks . | . . . . . Damage Inflicted 1539 | 94 1054 122 . 269 Guns 1133 | 85 949 . . 99 Cannons 203 | . 81 122 . . Explosions 170 | . . . . 170 Melee . | . . . . . Ramming 33 | 9 24 . . . Kinetic 1308 | 85 1030 122 . 71 Thermal . | . . . . . Explosive . | . . . . . Electromagnetic 198 | . . . . 198 Impact . | . . . . . Slashing . | . . . . . Piercing . | . . . . . Highest Corruption 3 | . . . . 3 Average Corruption 3 | . . . . 3 Corruption Purged . | . . . . . Corruption Blocked . | . . . . . Effects 1 | . . . . 1 Message Errors 1 | . . . . 1 Overload Shots . | . . . . . Overflow Damage . | . . . . . Projectiles . | . . . . . Explosions . | . . . . . Melee . | . . . . . Knockbacks 1 | . 1 . . . Impact . | . . . . . Kinetic 1 | . 1 . . . Secondary . | . . . . . Self-Inflicted Damage . | . . . . . Shots . | . . . . . Rammed 8 | 2 6 . . . Targets Rammed 8 | 2 6 . . . Kicked . | . . . . . Crushed . | . . . . . Highest Temperature 91 | . 22 91 15 66 Average Temperature 19 | . 5 48 10 24 Received Heat Transfer 222 | . 222 . . . Siege Activations . | . . . . . Robots Corrupted . | . . . . . Combat Hostiles . | . . . . . Parts Fried 3 | . . . . 3 Impact Corruptions . | . . . . . Robots Melted . | . . . . . Combat Hostiles . | . . . . . Parts Melted . | . . . . . Heat Transferred . | . . . . . Parts Sabotaged . | . . . . . Parts Stolen . | . . . . . Parts Stripped . | . . . . . Power Chain Reactions . | . . . . . Missiles Intercepted . | . . . . . Alert | -11 -10 -10 -10 -9 ------- Run | Jun Mat Min Exi Min Peak Influence 380 | 10 380 147 . 30 Initial 77 | . 6 77 . . Average 142 | 6 190 83 . . Maximum Alert Level 1 | . 1 . . . Low Security (%) 66 | 100 48 100 . 100 Level 1 33 | . 51 . . . Level 2 . | . . . . . Level 3 . | . . . . . Level 4 . | . . . . . Level 5 . | . . . . . High Security . | . . . . . Max Security . | . . . . . Squads Dispatched 6 | . 6 . . . Investigation 3 | . 3 . . . Extermination . | . . . . . Reinforcement 3 | . 3 . . . Assault . | . . . . . Garrison . | . . . . . Intercept . | . . . . . Searches Triggered . | . . . . . Construction Impeded . | . . . . . Haulers Reinforced . | . . . . . Active Scanning Responses . | . . . . . Cargo Convoy Interrupts . | . . . . . Stealth | -11 -10 -10 -10 -9 --------- Run | Jun Mat Min Exi Min Distress Signals . | . . . . . Communications Jammed . | . . . . . Distress Signals . | . . . . . Times Spotted 35 | . 24 2 . 9 Peak Tracking Total 6 | . 4 2 . 6 Tactical Retreats . | . . . . . Traps | -11 -10 -10 -10 -9 ------- Run | Jun Mat Min Exi Min Traps Triggered 3 | . 3 . . . Indirectly . | . . . . . Trap Hack Attempts . | . . . . . Triggered . | . . . . . Disarmed . | . . . . . Reprogrammed . | . . . . . Reused . | . . . . . Traps Extracted . | . . . . . Installed . | . . . . . Triggered . | . . . . . Machines | -11 -10 -10 -10 -9 ---------- Run | Jun Mat Min Exi Min Machines Disabled 2 | . . . 2 . Max in Single Turn 2 | . . . 2 . Machines Repaired . | . . . . . Machines Sabotaged . | . . . . . Overloaded Fab Kills . | . . . . . Hacking | -11 -10 -10 -10 -9 --------- Run | Jun Mat Min Exi Min Machines Accessed 11 | . 8 1 2 . Terminals 5 | . 5 . . . Fabricators . | . . . . . Repair Stations 1 | . 1 . . . Recycling Units 2 | . 2 . . . Scanalyzers . | . . . . . Garrison Access . | . . . . . Total Hacks 21 | . 18 1 2 . Successful 10 | . 7 1 2 . Failed 11 | . 11 . . . Catastrophic 2 | . 2 . . . Database Lockouts . | . . . . . Manual 16 | . 15 . 1 . Terminals 14 | . 14 . . . Fabricators . | . . . . . Repair Stations 2 | . 2 . . . Recycling Units 2 | . 2 . . . Scanalyzers . | . . . . . Garrison Access . | . . . . . Terminal Hacks 6 | . 3 1 2 . Record 1 | . . . 1 . Robot Analysis 2 | . 2 . . . Open Door 1 | . . 1 . . Zone Layout 1 | . 1 . . . Derelict Proto ID Bank 1 | . . . 1 . Fabricator Hacks . | . . . . . Repair Station Hacks 2 | . 2 . . . Scan Component 1 | . 1 . . . Repair 1 | . 1 . . . Recycling Unit Hacks . | . . . . . Scanalyzer . | . . . . . Garrison Access Hacks . | . . . . . Unauthorized Hacks 2 | . 2 . . . Terminals . | . . . . . Fabricators . | . . . . . Repair Stations . | . . . . . Recycling Units 2 | . 2 . . . Tunnel 2 | . 2 . . . Scanalyzers . | . . . . . Garrison Access . | . . . . . Data Cores Recovered . | . . . . . Used . | . . . . . Hacking Detections 5 | . 5 . . . Full Trace Events 1 | . 1 . . . Feedback Events . | . . . . . Feedback Blocked . | . . . . . Robot Schematics Acquired . | . . . . . Robots Built . | . . . . . Authchips . | . . . . . Time . | . . . . . Total Robot Build Rating . | . . . . . Part Schematics Acquired . | . . . . . Parts Built . | . . . . . Authchips . | . . . . . Time . | . . . . . Total Part Build Rating . | . . . . . Parts Repaired 1 | . 1 . . . Time 26 | . 26 . . . Parts Recycled . | . . . . . Recycled Matter . | . . . . . Retrieved Matter . | . . . . . Retrieved Components . | . . . . . Parts Scanalyzed . | . . . . . Part Schematics Acquired . | . . . . . Parts Damaged . | . . . . . Bothacking | -11 -10 -10 -10 -9 ------------ Run | Jun Mat Min Exi Min Used RIF Installer . | . . . . . Robots Hacked . | . . . . . Non-combat . | . . . . . Combat . | . . . . . Robot Hacks Applied . | . . . . . Relay Couplers Released . | . . . . . Fabnet Peak Effective % . | . . . . . Robots Rewired . | . . . . . Allies Hacked . | . . . . . Hacks Repelled . | . . . . . Allies | -11 -10 -10 -10 -9 -------- Run | Jun Mat Min Exi Min Total Allies . | . . . . . Largest Group . | . . . . . Highest-Rated Group . | . . . . . Highest-Rated Ally . | . . . . . Total Orders . | . . . . . Ally Attacks . | . . . . . Total Damage . | . . . . . Kills . | . . . . . Allies Corrupted . | . . . . . Allies Melted . | . . . . . Intel | -11 -10 -10 -10 -9 ------- Run | Jun Mat Min Exi Min Robot Analysis Total 2 | . 2 . . . Derelict Logs Recovered 1 | . . 1 . . Drone Launches . | . . . . . Drone Recoveries . | . . . . . Exploration | -11 -10 -10 -10 -9 ------------- Run | Jun Mat Min Exi Min Turns Passed 3797 | 55 1764 696 1035 247 Spaces Moved 1527 | 19 718 278 423 89 Core . | . . . . . Treads 1527 | 19 718 278 423 89 Legs . | . . . . . Wheels . | . . . . . Hover . | . . . . . Flight . | . . . . . Fastest Speed 160 | 160 160 240 240 240 Average Speed 215 | 160 189 240 240 240 Slowest Speed 240 | 160 240 240 240 240 Overloaded Moves . | . . . . . Propulsion Burnouts . | . . . . . Robots Hopped . | . . . . . Cave-ins Triggered . | . . . . . Exploration Rate (%) 51 | 3 86 59 71 37 Regions Visited 4 Branch Regions 3 Pre-discovered Areas 3 | . 2 . 1 . Known Exits Taken . | . . . . . Unknown Exits Taken 4 | 1 1 1 1 . Scrap Searched 2 | . . 1 . 1 Spaces Dug . | . . . . . Terrain Destroyed . | . . . . . Melee . | . . . . . Projectile . | . . . . . AOE . | . . . . . Terrain Rammed . | . . . . . Walls Destroyed . | . . . . . Machines Disabled . | . . . . . Actions | -11 -10 -10 -10 -9 --------- Run | Jun Mat Min Exi Min Total 1880 | 30 997 295 449 109 Wait 151 | . 151 . . . Move 1524 | 19 717 277 422 89 Hop . | . . . . . Pick Up 37 | . 25 2 9 1 Fast Attach 10 | 1 7 2 . . Attach 10 | . 3 . 2 5 Detach 3 | . 1 . 2 . Swap 17 | 3 8 2 1 3 Drop 34 | . 15 5 12 2 Fire 87 | 6 64 7 1 9 Melee . | . . . . . Ram . | . . . . . Kick . | . . . . . Crush 7 | 1 6 . . . Escape Stasis . | . . . . . Rewire . | . . . . . Trap . | . . . . . Miscellaneous . | . . . . . Route ------- -11/Junkyard -10/Materials (discovered 5 exits: *Mat x3 / *Min x2) -10/Mines (discovered 4 exits: *Mat x2 / *Exi / [*Sub]) -10/Exiles -9/Mines (discovered 1 exit: [*Mat]) History --------- Turn | Location | Event 12 | -11/Junkyard | Discovered new exit (range 3) 56 | -11/Junkyard | Entered Materials 323 | -10/Materials | Build established: Mutant 442 | -10/Materials | Discovered new exit (range 9) 547 | -10/Materials | Discovered new exit (range 16) 556 | -10/Materials | Repaired Lgt. Treads 704 | -10/Materials | Discovered new exit (range 15) 861 | -10/Materials | Discovered new exit (range 14) 1742 | -10/Materials | Discovered new exit (range 14) 1820 | -10/Materials | Entered Mines 1863 | -10/Mines | Discovered new exit (range 13) 1892 | -10/Mines | Received a Rocket Launcher from a helpful Derelict 1989 | -10/Mines | A weapon hastily lodged in a ceiling crevice suddenly fell to the ground 2111 | -10/Mines | Found a damaged Exp. Sensor Array with a note attached 2116 | -10/Mines | Found Prototype Device 2116 | -10/Mines | Identified Exp. Sensor Array 2158 | -10/Mines | Deemed a non-threat by the Exiles lab entrance 2158 | -10/Mines | Discovered new exit (range 5) 2213 | -10/Mines | Discovered new exit (range 10) 2329 | -10/Mines | Found the Drone Emporium 2330 | -10/Mines | Identified exit to Materials 2343 | -10/Mines | Found Prototype Device 2343 | -10/Mines | Identified Thief Drone Bay 2516 | -10/Mines | Entered Exiles 2574 | -10/Exiles | Met 8R-AWN 2617 | -10/Exiles | Met EX-HEX 2713 | -10/Exiles | Met EX-DEC 2723 | -10/Exiles | Learned location of Zion (-7) 3039 | -10/Exiles | Discovered new exit (range 10) 3190 | -10/Exiles | Met EX-BIN 3224 | -10/Exiles | Aligned with FarCom system 3226 | -10/Exiles | Given EX-Vault access code 3285 | -10/Exiles | Opened EX-Vault 3302 | -10/Exiles | Found Firepult 3305 | -10/Exiles | Found 0b10 Alert Chip 3316 | -10/Exiles | Found Lightpack 2.0 3373 | -10/Exiles | Warned to stay clear of 0b10 Research branches 3386 | -10/Exiles | Exiles lab attacked by MAIN.C 3551 | -10/Exiles | Stole three prototypes: Lightpack 2.0, 0b10 Alert Chip, Firepult 3551 | -10/Exiles | Entered Mines 3642 | -9/Mines | Discovered new exit (range 9) 3746 | -9/Mines | Assembled infested the area 3779 | -9/Mines | Core integrity fell below 50% 3791 | -9/Mines | Core integrity fell below 20% 3798 | -9/Mines | Destroyed by D-53 Grenadier with Mini Grenade Launcher Last Messages --------------- 03780_ EMP Blaster destroyed. 03782_ Lgt. Treads destroyed. 03782_ as-97826 destroyed. 03782_ as-94725 destroyed. 03784_ The unstable cave ceiling collapses. 03786_ D-53 Grenadier IFF system glitched. 03786_ Lgt. Treads destroyed. 03787_ The unstable cave ceiling collapses. 03787_ Mni. Grenade Launcher fried. 03787_ Shock Absorption System fried. 03787_ Launcher Guidance Computer fried. 03787_ D-53 Grenadier destroyed. 03788_ EMP Blaster destroyed. 03788_ Imp. Ion Engine destroyed. 03790_ Hvy. EM Pulse Gun destroyed. 03793_ FPFHF>0LH3MIDHPUCIN XX : >UR< 03794_ The unstable cave ceiling collapses. 03795_ R-06 Scavenger destroyed. 03796_ D-53 Grenadier misfires. 03798_ Destroyed Shock Absorption System. Map ----- +----------------------------------------------------+ | ???????????????????????????????# ##????####### | | ???????????????????????????#??##[ ##???# | | ???????????????????????????# ##** ##### | | ??????????????????????????## """ % #### | | ??????????????????????????# """ ! #??? | | ??????????????????????????# """ ########??? | | ??????????????????????????## ##?????????? | | ???????????????????????????## ####??????????? | | ????????????????????????????### ##????## ??????? | | ??????????????????????????????## #????## ?????# | | ???????????????????????????????# ##???## ???## | | ?????????????????????????####??###????# #???# | | ????????????????????????? #?????????? #???# | | ???????????????????????? ??????????? ##??# | | ???????????????????????? ????????????# ##?# | | ???????????????????????? #?????????????# ### | | ???????????????????????? ##???????????## | | ???????????????????????? #???????????# | | ?????????????????#??????? ???????????## | | ?????????????????# ?????? ??????????## | | ?????????????????# ??#### #???####??## | | ?????????????????#